[Event "VII Famalicao Open 2019"]
[Site "Famalicao"]
[Date "2019.07.29"]
[Round "2.8"]
[White "Martins, Diogo Faria Oliveira"]
[Black "Cori T., Deysi"]
[Result "0-1"]
[ECO "B46"]
[WhiteElo "1984"]
[BlackElo "2405"]
[Annotator "NA"]
[PlyCount "106"]
[EventDate "2019.07.28"]
[EventType "swiss"]
[EventCountry "POR"]
[SourceTitle "playchess.com"]
[Source "ChessBase"]
[SourceQuality "1"]
[TimeControl "5400+30"]

1. e4 {[%emt 0:13:32]} c5 {[%emt 0:00:00]} 2. Nf3 {[%emt 0:00:10]} e6 {[%emt 0:00:00]} 3. d4 {[%emt 0:00:08]} cxd4 {[%emt 0:00:00]} 4. Nxd4 {[%emt 0:00:06]} Nc6 {[%emt 0:00:00]} 5. Nc3 {[%emt 0:00:21]} a6 {[%emt 0:00:00]} 6. g3 {[%emt 0:01:05]} Qc7 {[%emt 0:01:39]} 7. Bg2 {[%emt 0:01:28]} Nf6 {[%emt 0:02:26]} 8. O-O {[%emt 0:00:25]} h6 {[%emt 0:05:40]} 9. Re1 {[%emt 0:05:23]} Nxd4 {[%emt 0:02:37]} 10. Qxd4 {[%emt 0:00:07]} Bc5 {[%emt 0:00:02]} 11. Bf4 {[%emt 0:00:47]} d6 {[%emt 0:00:02]} 12. Qd2 {[%emt 0:00:11]} Ng4 {[%emt 0:06:59]} 13. Nd1 {[%emt 0:12:14]} Ne5 {[%emt 0:01:26]} 14. Bxe5 {[%emt 0:06:48]} dxe5 {[%emt 0:00:07]} 15. c4 {[%emt 0:02:42]} O-O {[%emt 0:02:28]} 16. Ne3 {[%emt 0:02:04]} Bd7 {[%emt 0:03:29]} 17. b4 {[%emt 0:04:23]} Bd4 {[%emt 0:00:12]} 18. Rab1 {[%emt 0:07:16]} Rfd8 {[%emt 0:03:24]} 19. Rec1 {[%emt 0:04:36]} Rac8 {[%emt 0:07:55]} 20. Qe1 {[%emt 0:02:53]} Ba4 {[%emt 0:01:42]} 21. c5 {[%emt 0:09:19]} Bxe3 {[%emt 0:05:04]} 22. Qxe3 {[%emt 0:00:54]} Rd4 {[%emt 0:00:26]} 23. Bf1 {[%emt 0:02:37]} Qc6 {[%emt 0:01:41]} 24. f3 {[%emt 0:01:25]} Rcd8 {[%emt 0:00:26]} 25. Rb2 {[%emt 0:02:29]} Bb5 {[%emt 0:02:05]} 26. Be2 {[%emt 0:02:13]} Bxe2 {[%emt 0:00:19]} 27. Qxe2 {[%emt 0:00:05]} Qa4 {[%emt 0:01:37]} 28. b5 {[%emt 0:02:38]} axb5 {[%emt 0:34:46]} 29. Qxb5 {[%emt 0:00:11]} Qa3 {[%emt 0:00:08]} 30. Qb3 {[%emt 0:01:08]} Qa6 {[%emt 0:00:36]} 31. Qb5 {[%emt 0:01:59]} Qa3 {[%emt 0:00:15]} 32. Qb3 {[%emt 0:00:23]} Qa5 {[%emt 0:00:05]} 33. Qb5 {[%emt 0:04:00]} Rd1+ {[%emt 0:07:25]} 34. Rxd1 {[%emt 0:00:22]} Rxd1+ {[%emt 0:00:02]} 35. Kg2 {[%emt 0:00:12]} Qc3 {[%emt 0:05:53]} 36. Qe2 {[%emt 0:01:01]} Rc1 {[%emt 0:00:29]} 37. Qf2 {[%emt 0:01:02]} h5 {[%emt 0:03:30]} 38. Kh3 {[%emt 0:02:02]} g5 {[%emt 0:00:15]} 39. Qd2 {[%emt 0:04:19]} Qxd2 {[%emt 0:01:04]} 40. Rxd2 {[%emt 0:00:02]} Rxc5 {[%emt 0:00:06]} 41. Rb2 {[%emt 0:00:27]} Ra5 {[%emt 0:01:37]} 42. Rxb7 {[%emt 0:01:20]} Rxa2 {[%emt 0:00:07]} 43. Rb5 {[%emt 0:00:08]} f6 {[%emt 0:00:48]} 44. Rb8+ {[%emt 0:00:24]} Kf7 {[%emt 0:00:01]} 45. Rb7+ {[%emt 0:00:01]} Kg6 {[%emt 0:00:27]} 46. Rb3 {[%emt 0:00:50]} Rf2 {[%emt 0:00:44]} 47. Ra3 {[%emt 0:00:29]} Rxf3 {[%emt 0:02:06]} 48. Rxf3 {[%emt 0:00:11]} g4+ {[%emt 0:00:01]} 49. Kg2 {[%emt 0:00:02]} gxf3+ {[%emt 0:00:05]} 50. Kxf3 {[%emt 0:00:07]} f5 {[%emt 0:00:14]} 51. h4 {[%emt 0:03:35]} fxe4+ {[%emt 0:01:54]} 52. Kxe4 {[%emt 0:00:18]} Kf6 {[%emt 0:00:01]} 53. g4 {[%emt 0:02:02]} hxg4 {[%emt 0:00:11]} 0-1

[Event "VII Famalicao Open 2019"]
[Site "Famalicao"]
[Date "2019.07.29"]
[Round "2.9"]
[White "Vassallo Barroche, Mauricio"]
[Black "Da Silva, Tiago Henrique Amaro"]
[Result "1-0"]
[ECO "E65"]
[WhiteElo "2380"]
[BlackElo "2080"]
[Annotator "NA"]
[PlyCount "57"]
[EventDate "2019.07.28"]
[EventType "swiss"]
[EventCountry "POR"]
[SourceTitle "playchess.com"]
[Source "ChessBase"]
[SourceQuality "1"]
[TimeControl "5400+30"]

1. Nf3 {[%emt 0:00:09]} Nf6 {[%emt 0:00:00]} 2. c4 {[%emt 0:00:13]} c5 {[%emt 0:00:53]} 3. g3 {[%emt 0:00:27]} g6 {[%emt 0:01:20]} 4. Bg2 {[%emt 0:00:25]} Bg7 {[%emt 0:00:41]} 5. O-O {[%emt 0:00:34]} O-O {[%emt 0:01:11]} 6. d4 {[%emt 0:00:06]} d6 {[%emt 0:10:16]} 7. Nc3 {[%emt 0:01:25]} a6 {[%emt 0:06:42]} 8. b3 {[%emt 0:00:18]} Qc7 {[%emt 0:01:54]} 9. Bb2 {[%emt 0:01:14]} Nbd7 {[%emt 0:02:42]} 10. Rc1 {[%emt 0:07:50]} Rb8 {[%emt 0:08:12]} 11. Qd2 {[%emt 0:01:23]} b6 {[%emt 0:04:18]} 12. h3 {[%emt 0:10:00]} e6 {[%emt 0:17:51]} 13. e4 {[%emt 0:04:56]} e5 {[%emt 0:04:42]} 14. dxe5 {[%emt 0:03:38]} dxe5 {[%emt 0:01:25]} 15. Rfd1 {[%emt 0:00:36]} Bb7 {[%emt 0:01:46]} 16. Qe2 {[%emt 0:00:09]} Rfd8 {[%emt 0:02:53]} 17. Nd5 {[%emt 0:00:43]} Nxd5 {[%emt 0:01:27]} 18. cxd5 {[%emt 0:00:14]} Qd6 {[%emt 0:01:25]} 19. h4 {[%emt 0:01:53]} Re8 {[%emt 0:06:28]} 20. Nd2 {[%emt 0:07:21]} b5 {[%emt 0:01:53]} 21. Ba3 {[%emt 0:00:08]} Rbc8 {[%emt 0:01:55]} 22. Bh3 {[%emt 0:00:18]} Re7 {[%emt 0:01:49]} 23. Qe3 {[%emt 0:02:06]} Bf8 {[%emt 0:01:30]} 24. Rc2 {[%emt 0:00:41]} Kg7 {[%emt 0:03:05]} 25. h5 {[%emt 0:01:49]} Rc7 {[%emt 0:02:19]} 26. hxg6 {[%emt 0:00:50]} hxg6 {[%emt 0:00:53]} 27. Nf3 {[%emt 0:00:42]} f6 {[%emt 0:02:05]} 28. Ne1 {[%emt 0:01:59]} b4 {[%emt 0:00:42]} 29. Bxb4 {[%emt 0:00:27]} 1-0

[Event "VII Famalicao Open 2019"]
[Site "Famalicao"]
[Date "2019.07.29"]
[Round "2.10"]
[White "Dumont, Andre"]
[Black "Fernandes, Antonio"]
[Result "0-1"]
[ECO "A05"]
[WhiteElo "1948"]
[BlackElo "2376"]
[Annotator "NA"]
[PlyCount "52"]
[EventDate "2019.07.28"]
[EventType "swiss"]
[EventCountry "POR"]
[SourceTitle "playchess.com"]
[Source "ChessBase"]
[SourceQuality "1"]
[TimeControl "5400+30"]

1. Nf3 Nf6 {[%emt 0:03:08]} 2. b3 {[%emt 0:00:00]} g6 {[%emt 0:02:12]} 3. Bb2 {[%emt 0:00:00]} Bg7 {[%emt 0:00:01]} 4. e3 {[%emt 0:00:00]} O-O {[%emt 0:00:09]} 5. Be2 {[%emt 0:00:06]} c5 {[%emt 0:00:52]} 6. O-O {[%emt 0:02:27]} b6 {[%emt 0:00:53]} 7. d4 {[%emt 0:00:35]} Bb7 {[%emt 0:00:13]} 8. Ne5 {[%emt 0:05:23]} cxd4 9. exd4 {[%emt 0:01:00]} d6 {[%emt 0:09:01]} 10. Bf3 {[%emt 0:02:33]} Qc7 {[%emt 0:03:22]} 11. Bxb7 {[%emt 0:03:47]} Qxb7 {[%emt 0:00:02]} 12. Qf3 {[%emt 0:05:02]} Qxf3 13. Nxf3 {[%emt 0:00:02]} Nc6 {[%emt 0:08:16]} 14. Nbd2 {[%emt 0:00:57]} Nb4 {[%emt 0:06:16]} 15. a3 {[%emt 0:01:40]} Nxc2 {[%emt 0:05:45]} 16. Rac1 {[%emt 0:00:01]} Rfc8 {[%emt 0:00:22]} 17. Nc4 {[%emt 0:01:02]} b5 {[%emt 0:00:39]} 18. Rxc2 {[%emt 0:01:43]} bxc4 {[%emt 0:00:03]} 19. bxc4 {[%emt 0:08:17]} Rab8 {[%emt 0:00:55]} 20. Bc1 {[%emt 0:19:45]} Rb3 {[%emt 0:15:14]} 21. Re1 {[%emt 0:03:13]} Kf8 {[%emt 0:01:26]} 22. Ree2 {[%emt 0:00:39]} Nd7 {[%emt 0:05:40]} 23. Re3 {[%emt 0:01:16]} Rb1 {[%emt 0:02:07]} 24. Nd2 {[%emt 0:00:10]} Rb6 {[%emt 0:01:12]} 25. c5 {[%emt 0:21:51]} Bxd4 {[%emt 0:04:06]} 26. Rxe7 {[%emt 0:02:18]} Kxe7 {[%emt 0:00:30]} 0-1

[Event "VII Famalicao Open 2019"]
[Site "Famalicao"]
[Date "2019.07.29"]
[Round "2.11"]
[White "Forgas Moreno, Yaniela"]
[Black "Gomes, Rui Pedro"]
[Result "1-0"]
[ECO "B14"]
[WhiteElo "2272"]
[BlackElo "1762"]
[Annotator "NA"]
[PlyCount "23"]
[EventDate "2019.07.28"]
[EventType "swiss"]
[EventCountry "POR"]
[SourceTitle "playchess.com"]
[Source "ChessBase"]
[SourceQuality "1"]
[TimeControl "5400+30"]

1. e4 {[%emt 0:08:03]} c6 {[%emt 0:00:00]} 2. d4 {[%emt 0:00:11]} d5 {[%emt 0:00:00]} 3. exd5 {[%emt 0:00:09]} cxd5 {[%emt 0:00:06]} 4. c4 {[%emt 0:00:11]} Nf6 {[%emt 0:02:03]} 5. Nc3 {[%emt 0:00:09]} g6 {[%emt 0:01:14]} 6. cxd5 {[%emt 0:00:27]} Bg7 {[%emt 0:00:48]} 7. Qb3 {[%emt 0:04:28]} O-O {[%emt 0:03:29]} 8. Nge2 {[%emt 0:04:24]} b6 {[%emt 0:13:21]} 9. g3 {[%emt 0:03:04]} Bb7 {[%emt 0:05:26]} 10. Bg2 {[%emt 0:00:08]} Na6 {[%emt 0:02:39]} 11. O-O {[%emt 0:02:22]} Nc7 {[%emt 0:05:16]} 12. d6 {[%emt 0:00:26]} 1-0

[Event "VII Famalicao Open 2019"]
[Site "Famalicao"]
[Date "2019.07.29"]
[Round "2.12"]
[White "Monteiro, Jose Macedo"]
[Black "Fidalgo, Andre Neves"]
[Result "0-1"]
[ECO "B24"]
[WhiteElo "1851"]
[BlackElo "2262"]
[Annotator "NA"]
[PlyCount "112"]
[EventDate "2019.07.28"]
[EventType "swiss"]
[EventCountry "POR"]
[SourceTitle "playchess.com"]
[Source "ChessBase"]
[SourceQuality "1"]
[TimeControl "5400+30"]

1. e4 {[%emt 0:03:08]} c5 {[%emt 0:00:00]} 2. Nc3 {[%emt 0:00:40]} Nc6 {[%emt 0:00:21]} 3. Bb5 {[%emt 0:00:08]} Nd4 {[%emt 0:00:06]} 4. Nge2 {[%emt 0:00:07]} Nxb5 {[%emt 0:01:32]} 5. Nxb5 {[%emt 0:00:08]} a6 {[%emt 0:00:26]} 6. Nbc3 {[%emt 0:00:03]} e6 {[%emt 0:00:07]} 7. d4 {[%emt 0:00:09]} cxd4 {[%emt 0:00:40]} 8. Qxd4 {[%emt 0:00:10]} Ne7 {[%emt 0:01:23]} 9. Be3 {[%emt 0:00:32]} Nc6 {[%emt 0:00:25]} 10. Qd2 {[%emt 0:00:25]} b5 {[%emt 0:01:02]} 11. O-O-O {[%emt 0:00:33]} Be7 {[%emt 0:00:24]} 12. f4 {[%emt 0:00:51]} Qa5 {[%emt 0:01:07]} 13. Nd4 {[%emt 0:05:30]} b4 {[%emt 0:04:46]} 14. Nxc6 {[%emt 0:00:21]} dxc6 {[%emt 0:00:10]} 15. Nb1 {[%emt 0:01:29]} O-O {[%emt 0:00:42]} 16. a3 {[%emt 0:02:14]} c5 {[%emt 0:00:44]} 17. axb4 {[%emt 0:00:32]} cxb4 {[%emt 0:00:17]} 18. Rhf1 {[%emt 0:05:34]} Re8 {[%emt 0:04:11]} 19. Bd4 {[%emt 0:02:48]} Bb7 {[%emt 0:02:29]} 20. Qe3 {[%emt 0:02:56]} Bf8 {[%emt 0:02:39]} 21. g4 {[%emt 0:05:22]} Qb5 {[%emt 0:10:56]} 22. h4 {[%emt 0:07:24]} a5 {[%emt 0:02:44]} 23. h5 {[%emt 0:02:54]} a4 {[%emt 0:00:30]} 24. h6 {[%emt 0:00:22]} g6 {[%emt 0:03:30]} 25. g5 {[%emt 0:13:10]} a3 {[%emt 0:02:12]} 26. bxa3 {[%emt 0:03:28]} bxa3 {[%emt 0:00:16]} 27. Nc3 {[%emt 0:00:08]} Qc4 {[%emt 0:01:30]} 28. Qd3 {[%emt 0:14:03]} Ba6 {[%emt 0:01:16]} 29. Qxc4 {[%emt 0:11:53]} Bxc4 {[%emt 0:00:11]} 30. Rfe1 {[%emt 0:00:16]} Reb8 {[%emt 0:01:59]} 31. Kd2 {[%emt 0:02:48]} Rd8 {[%emt 0:05:37]} 32. Ke3 {[%emt 0:00:31]} a2 {[%emt 0:00:20]} 33. Ra1 {[%emt 0:05:00]} Ra3 {[%emt 0:01:09]} 34. Bf6 {[%emt 0:01:35]} Rc8 {[%emt 0:16:27]} 35. Kd2 {[%emt 0:01:25]} Bb4 {[%emt 0:00:38]} 36. Re3 {[%emt 0:00:17]} Ba6 {[%emt 0:05:12]} 37. f5 {[%emt 0:03:50]} Bb7 {[%emt 0:02:04]} 38. fxe6 {[%emt 0:00:58]} fxe6 {[%emt 0:00:06]} 39. Rd3 {[%emt 0:03:54]} Bxe4 {[%emt 0:01:08]} 40. Rd7 {[%emt 0:00:49]} Bxc3+ {[%emt 0:10:54]} 41. Bxc3 {[%emt 0:00:08]} Raxc3 {[%emt 0:00:05]} 42. Rg7+ {[%emt 0:00:09]} Kh8 {[%emt 0:00:07]} 43. Rxa2 {[%emt 0:00:04]} Rxc2+ {[%emt 0:00:04]} 44. Rxc2 {[%emt 0:00:08]} Bxc2 {[%emt 0:00:04]} 45. Re7 {[%emt 0:00:12]} Bf5 {[%emt 0:01:39]} 46. Ke3 {[%emt 0:00:08]} e5 {[%emt 0:01:43]} 47. Rxe5 {[%emt 0:00:16]} Bd7 {[%emt 0:00:08]} 48. Rd5 {[%emt 0:01:33]} Re8+ {[%emt 0:00:15]} 49. Kd4 {[%emt 0:00:20]} Re7 {[%emt 0:00:48]} 50. Rc5 {[%emt 0:01:04]} Kg8 {[%emt 0:00:12]} 51. Kd5 {[%emt 0:00:06]} Kf7 {[%emt 0:00:08]} 52. Kd6 {[%emt 0:00:16]} Be8 {[%emt 0:02:04]} 53. Rc2 {[%emt 0:00:43]} Rd7+ {[%emt 0:00:23]} 54. Ke5 {[%emt 0:00:16]} Ke7 {[%emt 0:00:05]} 55. Rc8 {[%emt 0:00:26]} Rb7 {[%emt 0:00:07]} 56. Rc5 {[%emt 0:00:08]} Rb5 0-1

[Event "VII Famalicao Open 2019"]
[Site "Famalicao"]
[Date "2019.07.29"]
[Round "2.13"]
[White "Rego, Pedro Filipe"]
[Black "De Souza Monteiro, Marcos Paulo"]
[Result "1-0"]
[ECO "A00"]
[WhiteElo "2249"]
[BlackElo "1953"]
[Annotator "NA"]
[PlyCount "47"]
[EventDate "2019.07.28"]
[EventType "swiss"]
[EventCountry "POR"]
[SourceTitle "playchess.com"]
[Source "ChessBase"]
[SourceQuality "1"]
[TimeControl "5400+30"]

1. g3 {[%emt 0:00:00]} Nf6 {[%emt 0:00:00]} 2. c4 {[%emt 0:00:00]} c5 {[%emt 0:00:00]} 3. Bg2 {[%emt 0:00:00]} g6 {[%emt 0:00:06]} 4. Nc3 {[%emt 0:00:00]} Bg7 {[%emt 0:00:08]} 5. e4 {[%emt 0:00:00]} Nc6 {[%emt 0:00:10]} 6. Nge2 {[%emt 0:00:00]} O-O {[%emt 0:01:08]} 7. d3 {[%emt 0:00:00]} d6 {[%emt 0:00:08]} 8. a3 a6 {[%emt 0:01:46]} 9. Rb1 {[%emt 0:00:30]} Rb8 {[%emt 0:00:43]} 10. b4 {[%emt 0:01:36]} cxb4 {[%emt 0:00:21]} 11. axb4 {[%emt 0:00:05]} b5 {[%emt 0:00:11]} 12. cxb5 {[%emt 0:06:34]} axb5 {[%emt 0:00:07]} 13. O-O {[%emt 0:02:26]} Bg4 {[%emt 0:13:07]} 14. Be3 {[%emt 0:01:55]} Bxe2 {[%emt 0:08:07]} 15. Qxe2 {[%emt 0:00:25]} Ng4 {[%emt 0:01:45]} 16. Qxg4 {[%emt 0:01:48]} Bxc3 {[%emt 0:00:09]} 17. Rfc1 {[%emt 0:01:15]} Ne5 {[%emt 0:00:51]} 18. Qe2 {[%emt 0:00:23]} Rc8 {[%emt 0:06:53]} 19. d4 {[%emt 0:01:16]} Nd7 {[%emt 0:00:30]} 20. Qd3 {[%emt 0:00:56]} Qc7 {[%emt 0:02:14]} 21. Rb3 {[%emt 0:01:07]} Nb6 {[%emt 0:02:03]} 22. Qxb5 {[%emt 0:02:15]} Qc4 {[%emt 0:02:49]} 23. Qxc4 {[%emt 0:00:28]} Rxc4 {[%emt 0:00:05]} 24. Rcxc3 {[%emt 0:00:31]} 1-0

[Event "VII Famalicao Open 2019"]
[Site "Famalicao"]
[Date "2019.07.29"]
[Round "2.14"]
[White "Andrade, Ricardo Sarmento"]
[Black "Leonardo, Joao"]
[Result "0-1"]
[ECO "A41"]
[WhiteElo "1744"]
[BlackElo "2227"]
[Annotator "NA"]
[PlyCount "88"]
[EventDate "2019.07.28"]
[EventType "swiss"]
[EventCountry "POR"]
[SourceTitle "playchess.com"]
[Source "ChessBase"]
[SourceQuality "1"]
[TimeControl "5400+30"]

1. d4 {[%emt 0:00:00]} d6 2. Nf3 {[%emt 0:00:08]} Bg4 {[%emt 0:14:52]} 3. e4 {[%emt 0:01:24]} Nf6 {[%emt 0:00:15]} 4. Nc3 {[%emt 0:02:29]} Nc6 {[%emt 0:00:37]} 5. Be3 {[%emt 0:01:49]} e5 {[%emt 0:00:27]} 6. d5 {[%emt 0:00:24]} Nb8 {[%emt 0:00:18]} 7. Be2 {[%emt 0:01:37]} Be7 {[%emt 0:00:06]} 8. Nd2 {[%emt 0:02:09]} Bxe2 {[%emt 0:01:13]} 9. Qxe2 {[%emt 0:00:13]} a6 {[%emt 0:00:08]} 10. O-O {[%emt 0:00:28]} O-O {[%emt 0:00:22]} 11. f4 exf4 {[%emt 0:00:07]} 12. Bxf4 {[%emt 0:01:26]} Nbd7 13. Nc4 {[%emt 0:04:52]} Re8 {[%emt 0:01:32]} 14. Rae1 {[%emt 0:02:07]} Bf8 {[%emt 0:00:24]} 15. Qf3 {[%emt 0:02:20]} Ne5 {[%emt 0:03:44]} 16. Nxe5 {[%emt 0:00:13]} dxe5 17. Bg5 {[%emt 0:07:59]} Be7 {[%emt 0:00:06]} 18. Bxf6 {[%emt 0:00:30]} Bxf6 {[%emt 0:00:22]} 19. Nd1 {[%emt 0:00:56]} Rf8 {[%emt 0:02:56]} 20. Ne3 {[%emt 0:01:03]} Bg5 {[%emt 0:01:33]} 21. Nf5 {[%emt 0:03:07]} g6 {[%emt 0:00:29]} 22. Ne3 {[%emt 0:03:30]} Qe7 {[%emt 0:01:31]} 23. g3 {[%emt 0:01:02]} h5 {[%emt 0:00:29]} 24. h4 {[%emt 0:00:55]} Bh6 {[%emt 0:00:11]} 25. Kg2 {[%emt 0:03:07]} Rad8 {[%emt 0:01:58]} 26. Qf6 {[%emt 0:06:48]} Rfe8 {[%emt 0:00:02]} 27. Qxe7 Rxe7 28. d6 {[%emt 0:01:48]} Rxd6 {[%emt 0:02:20]} 29. Nd5 {[%emt 0:00:06]} Ree6 {[%emt 0:00:05]} 30. Nxc7 {[%emt 0:03:02]} Rd2+ 31. Rf2 {[%emt 0:00:01]} Rxf2+ {[%emt 0:01:04]} 32. Kxf2 Rc6 {[%emt 0:00:08]} 33. Nd5 {[%emt 0:01:07]} Rxc2+ 34. Re2 {[%emt 0:00:29]} Rxe2+ {[%emt 0:01:00]} 35. Kxe2 {[%emt 0:00:34]} Kf8 {[%emt 0:00:40]} 36. Nf6 Bc1 {[%emt 0:00:10]} 37. b3 {[%emt 0:04:01]} Ke7 {[%emt 0:00:19]} 38. Nd5+ Ke6 39. Kd3 {[%emt 0:01:14]} f5 {[%emt 0:00:45]} 40. a4 {[%emt 0:01:07]} f4 {[%emt 0:02:59]} 41. gxf4 Bxf4 {[%emt 0:00:19]} 42. Nxf4+ {[%emt 0:02:15]} exf4 {[%emt 0:00:07]} 43. Ke2 {[%emt 0:00:03]} Ke5 {[%emt 0:00:13]} 44. Kf3 {[%emt 0:00:03]} a5 {[%emt 0:00:09]} 0-1

[Event "VII Famalicao Open 2019"]
[Site "Famalicao"]
[Date "2019.07.29"]
[Round "3.5"]
[White "Leonardo, Joao"]
[Black "Petkov, Vladimir"]
[Result "0-1"]
[ECO "A06"]
[WhiteElo "2227"]
[BlackElo "2497"]
[Annotator "RC"]
[PlyCount "80"]
[EventDate "2019.07.28"]
[EventType "swiss"]
[EventCountry "POR"]
[SourceTitle "playchess.com"]
[Source "ChessBase"]
[SourceQuality "1"]
[TimeControl "5400+30"]

1. d3 {[%emt 0:08:37]} d5 {[%emt 0:00:48]} 2. Nf3 {[%emt 0:00:33]} Bg4 {[%emt 0:02:15]} 3. Nbd2 {[%emt 0:01:16]} Nc6 {[%emt 0:00:48]} 4. g3 {[%emt 0:00:19]} e5 {[%emt 0:00:42]} 5. Bg2 {[%emt 0:00:02]} Be7 {[%emt 0:00:17]} 6. e4 {[%emt 0:00:11]} dxe4 {[%emt 0:00:22]} 7. dxe4 {[%emt 0:00:04]} Qd7 {[%emt 0:01:05]} 8. h3 {[%emt 0:00:12]} Be6 {[%emt 0:00:19]} 9. Qe2 {[%emt 0:00:39]} O-O-O {[%emt 0:08:09]} 10. a3 {[%emt 0:00:17]} h5 {[%emt 0:00:11]} 11. h4 {[%emt 0:01:03]} Nh6 {[%emt 0:08:25]} 12. O-O {[%emt 0:01:10]} Ng4 {[%emt 0:00:15]} 13. Nc4 {[%emt 0:01:19]} f6 {[%emt 0:05:32]} 14. c3 {[%emt 0:00:44]} Qd3 {[%emt 0:02:38]} 15. Qxd3 {[%emt 0:00:42]} Rxd3 {[%emt 0:00:05]} 16. Ne3 {[%emt 0:00:22]} Nxe3 {[%emt 0:06:35]} 17. Bxe3 {[%emt 0:00:51]} Rhd8 {[%emt 0:00:12]} 18. Rfe1 {[%emt 0:00:29]} Bb3 {[%emt 0:18:17]} 19. Bf1 {[%emt 0:01:02]} R3d6 {[%emt 0:00:13]} 20. Be2 {[%emt 0:05:52]} b6 {[%emt 0:03:13]} 21. Rec1 {[%emt 0:01:26]} Na5 {[%emt 0:07:28]} 22. c4 {[%emt 0:09:45]} R6d7 {[%emt 0:00:17]} 23. c5 {[%emt 0:03:23]} Kb7 {[%emt 0:01:03]} 24. Rc3 {[%emt 0:17:06]} c6 {[%emt 0:00:28]} 25. cxb6 {[%emt 0:00:34]} axb6 {[%emt 0:00:10]} 26. Rac1 {[%emt 0:00:27]} b5 {[%emt 0:02:46]} 27. Ne1 {[%emt 0:09:15]} g6 {[%emt 0:04:34]} 28. Rd3 {[%emt 0:07:53]} Rxd3 {[%emt 0:11:38]} 29. Bxd3 {[%emt 0:00:12]} Nc4 {[%emt 0:01:03]} 30. Bxc4 {[%emt 0:01:33]} Bxc4 {[%emt 0:00:20]} 31. f3 {[%emt 0:00:39]} g5 {[%emt 0:00:12]} 32. Ng2 {[%emt 0:02:07]} Rd3 {[%emt 0:03:38]} 33. Kf2 {[%emt 0:00:31]} Rb3 {[%emt 0:02:00]} 34. Rc2 {[%emt 0:00:33]} c5 {[%emt 0:01:29]} 35. Ne1 {[%emt 0:06:19]} Kc6 {[%emt 0:01:43]} 36. Bd2 {[%emt 0:03:48]} Kd6 {[%emt 0:02:08]} 37. Bc3 {[%emt 0:00:12]} Ke6 {[%emt 0:00:12]} 38. Ng2 {[%emt 0:01:55]} Bd3 {[%emt 0:00:23]} 39. Rd2 {[%emt 0:00:17]} c4 {[%emt 0:00:10]} 40. Ke1 {[%emt 0:07:26]} Bxa3 {[%emt 0:00:52]} 0-1

[Event "VII Famalicao Open 2019"]
[Site "Famalicao"]
[Date "2019.07.29"]
[Round "3.9"]
[White "Santos, Jose Miguel Sereno"]
[Black "Vassallo Barroche, Mauricio"]
[Result "0-1"]
[ECO "B00"]
[WhiteElo "1702"]
[BlackElo "2380"]
[Annotator "RC"]
[PlyCount "128"]
[EventDate "2019.07.28"]
[EventType "swiss"]
[EventCountry "POR"]
[TimeControl "5400+30"]

1. e4 {[%emt 0:00:00]} d6 {[%emt 0:00:42]} 2. d4 {[%emt 0:01:01]} Nf6 {[%emt 0:00:14]} 3. Bd3 {[%emt 0:00:47]} e5 {[%emt 0:00:50]} 4. c3 {[%emt 0:00:19]} g6 {[%emt 0:03:10]} 5. Nf3 {[%emt 0:00:41]} Nbd7 {[%emt 0:00:09]} 6. O-O {[%emt 0:02:09]} Bg7 {[%emt 0:00:24]} 7. Re1 {[%emt 0:00:20]} O-O {[%emt 0:00:06]} 8. Nbd2 {[%emt 0:01:00]} Nh5 {[%emt 0:05:31]} 9. Nf1 {[%emt 0:02:07]} h6 {[%emt 0:00:27]} 10. Ng3 {[%emt 0:00:47]} Nxg3 {[%emt 0:00:09]} 11. hxg3 {[%emt 0:00:04]} Qe7 {[%emt 0:00:22]} 12. Bc4 {[%emt 0:00:33]} Kh7 {[%emt 0:00:46]} 13. Nh4 {[%emt 0:03:26]} Nb6 {[%emt 0:08:27]} 14. Bb3 {[%emt 0:00:59]} Bf6 {[%emt 0:00:45]} 15. Nf3 {[%emt 0:01:09]} Bg4 {[%emt 0:00:19]} 16. Ng5+ {[%emt 0:00:50]} Bxg5 {[%emt 0:00:02]} 17. Qxg4 {[%emt 0:00:08]} Bxc1 {[%emt 0:00:07]} 18. Raxc1 {[%emt 0:00:36]} a5 {[%emt 0:00:11]} 19. f4 {[%emt 0:01:45]} Kg7 {[%emt 0:00:08]} 20. f5 {[%emt 0:01:00]} a4 {[%emt 0:00:10]} 21. Bc2 {[%emt 0:00:29]} a3 {[%emt 0:00:07]} 22. bxa3 {[%emt 0:00:56]} Nd7 {[%emt 0:01:16]} 23. Rf1 {[%emt 0:03:29]} Nf6 {[%emt 0:00:08]} 24. Qf3 {[%emt 0:01:17]} Rxa3 {[%emt 0:01:14]} 25. Bb3 {[%emt 0:01:39]} g5 {[%emt 0:03:17]} 26. Rfe1 {[%emt 0:00:52]} Ra5 {[%emt 0:00:54]} 27. g4 {[%emt 0:03:27]} Qd8 {[%emt 0:00:10]} 28. Kh2 {[%emt 0:00:58]} Qa8 {[%emt 0:01:50]} 29. Rc2 {[%emt 0:00:33]} Qa7 {[%emt 0:02:35]} 30. Kg3 {[%emt 0:03:11]} Re8 {[%emt 0:01:51]} 31. d5 {[%emt 0:00:37]} Rh8 {[%emt 0:01:00]} 32. Rh1 {[%emt 0:00:52]} Qc5 {[%emt 0:01:06]} 33. Re2 {[%emt 0:01:27]} Ra3 {[%emt 0:02:53]} 34. Qe3 {[%emt 0:01:13]} Qxe3+ {[%emt 0:00:02]} 35. Rxe3 {[%emt 0:00:06]} Nd7 {[%emt 0:00:02]} 36. Kf3 {[%emt 0:02:03]} Nc5 {[%emt 0:00:01]} 37. c4 {[%emt 0:10:39]} Nd7 {[%emt 0:04:42]} 38. Rc3 {[%emt 0:08:52]} b6 {[%emt 0:00:06]} 39. Re3 {[%emt 0:03:51]} Nf6 {[%emt 0:00:06]} 40. Ree1 {[%emt 0:04:07]} Rha8 {[%emt 0:04:30]} 41. Re3 {[%emt 0:02:30]} Nd7 {[%emt 0:00:08]} 42. Rc1 {[%emt 0:01:11]} Nc5 {[%emt 0:00:10]} 43. Rb1 {[%emt 0:01:35]} Rh8 {[%emt 0:00:47]} 44. Rh1 {[%emt 0:02:55]} Ra5 {[%emt 0:00:36]} 45. Rc3 {[%emt 0:05:06]} Nd7 {[%emt 0:00:04]} 46. Rc2 {[%emt 0:00:57]} Nf6 {[%emt 0:00:34]} 47. Rcc1 {[%emt 0:00:21]} Ra3 {[%emt 0:00:18]} 48. Rce1 {[%emt 0:00:12]} Raa8 {[%emt 0:00:26]} 49. Rc1 {[%emt 0:09:08]} Ra7 {[%emt 0:03:09]} 50. Rce1 {[%emt 0:00:28]} Nd7 {[%emt 0:00:15]} 51. Rc1 {[%emt 0:00:46]} Nc5 {[%emt 0:00:11]} 52. Rc3 {[%emt 0:00:25]} Nxb3 {[%emt 0:00:15]} 53. axb3 {[%emt 0:00:05]} Ra2 {[%emt 0:00:03]} 54. Rhc1 {[%emt 0:00:26]} Rha8 {[%emt 0:00:32]} 55. R3c2 {[%emt 0:00:16]} Rxc2 {[%emt 0:00:47]} 56. Rxc2 {[%emt 0:00:06]} Ra1 {[%emt 0:00:02]} 57. g3 {[%emt 0:01:05]} Rb1 {[%emt 0:00:11]} 58. Rc3 {[%emt 0:00:35]} Rb2 {[%emt 0:00:04]} 59. Ke3 {[%emt 0:01:45]} h5 {[%emt 0:00:30]} 60. Kf3 {[%emt 0:00:48]} Kh6 {[%emt 0:00:09]} 61. gxh5 {[%emt 0:00:19]} Kxh5 {[%emt 0:00:02]} 62. g4+ {[%emt 0:00:10]} Kh4 {[%emt 0:00:04]} 63. Re3 {[%emt 0:00:57]} Rh2 {[%emt 0:00:10]} 64. Re1 {[%emt 0:01:20]} Rh3+ {[%emt 0:00:06]} 0-1